[Event "Late-Titled-Tuesday-Blitz-April-30-2024"]
[Site "Chess.com"]
[Date "2024.04.30"]
[Round "3"]
[White "Bryanl106"]
[Black "jcibarra"]
[Result "0-1"]
[WhiteElo "2697"]
[BlackElo "3003"]
[TimeControl "180+1"]
[EndTime "14:30:32 PDT"]
[Termination "jcibarra won by resignation"]

1. e4 {[%clk 0:02:57.3]} 1... c5 {[%clk 0:03:00.5]} 2. Nf3 {[%clk 0:02:57.5]}
2... e6 {[%clk 0:03:01]} 3. g3 {[%clk 0:02:58.1]} 3... Nc6 {[%clk 0:03:00.6]} 4.
Bg2 {[%clk 0:02:58.2]} 4... Nf6 {[%clk 0:03:01.1]} 5. Qe2 {[%clk 0:02:58.2]}
5... e5 {[%clk 0:03:01.5]} 6. Nc3 {[%clk 0:02:54.1]} 6... Be7 {[%clk 0:03:00.8]}
7. Nd5 {[%clk 0:02:53.8]} 7... d6 {[%clk 0:03:01.2]} 8. O-O {[%clk 0:02:51.4]}
8... O-O {[%clk 0:03:01.8]} 9. c3 {[%clk 0:02:51.4]} 9... Nxd5 {[%clk
0:02:48.9]} 10. exd5 {[%clk 0:02:52.3]} 10... Nb8 {[%clk 0:02:49.4]} 11. d4
{[%clk 0:02:52.1]} 11... exd4 {[%clk 0:02:49.8]} 12. cxd4 {[%clk 0:02:53]} 12...
cxd4 {[%clk 0:02:50.3]} 13. Nxd4 {[%clk 0:02:53.9]} 13... Bf6 {[%clk 0:02:50.5]}
14. Be3 {[%clk 0:02:42.6]} 14... Re8 {[%clk 0:02:50]} 15. Rad1 {[%clk
0:02:41.6]} 15... Nd7 {[%clk 0:02:48.1]} 16. Qc2 {[%clk 0:02:40.6]} 16... Nc5
{[%clk 0:02:25.5]} 17. b4 {[%clk 0:02:37.5]} 17... Na6 {[%clk 0:02:17.9]} 18. a3
{[%clk 0:02:35.9]} 18... Bg4 {[%clk 0:02:18.5]} 19. Rd2 {[%clk 0:02:28.2]} 19...
Rc8 {[%clk 0:02:17.6]} 20. Qd3 {[%clk 0:02:15.1]} 20... Nc7 {[%clk 0:02:13.8]}
21. h3 {[%clk 0:02:14.6]} 21... Bh5 {[%clk 0:02:13]} 22. Nf5 {[%clk 0:02:06.7]}
22... Bg6 {[%clk 0:02:10.4]} 23. g4 {[%clk 0:02:06.2]} 23... a6 {[%clk
0:02:04.7]} 24. Bf4 {[%clk 0:02:03.9]} 24... Nb5 {[%clk 0:02:03.9]} 25. Qg3
{[%clk 0:01:54.7]} 25... Rc3 {[%clk 0:01:58.8]} 26. Rd3 {[%clk 0:01:54.5]} 26...
Bxf5 {[%clk 0:01:50.3]} 27. gxf5 {[%clk 0:01:51.6]} 27... Qd7 {[%clk 0:01:50.6]}
28. Bd2 {[%clk 0:01:43.7]} 28... Rc2 {[%clk 0:01:39.2]} 29. Qg4 {[%clk
0:01:40.5]} 29... Nxa3 {[%clk 0:01:32.4]} 30. Bg5 {[%clk 0:01:28.7]} 30... Bxg5
{[%clk 0:01:22.8]} 31. Qxg5 {[%clk 0:01:29.6]} 31... f6 {[%clk 0:01:23.1]} 32.
Qf4 {[%clk 0:01:28.2]} 32... Nc4 {[%clk 0:01:20.5]} 33. Rc1 {[%clk 0:01:27.6]}
33... Rxc1+ {[%clk 0:01:15.7]} 34. Qxc1 {[%clk 0:01:28.5]} 34... b5 {[%clk
0:01:15.7]} 35. Qf4 {[%clk 0:01:25.7]} 35... Re5 {[%clk 0:01:13.6]} 36. Be4
{[%clk 0:01:23.5]} 36... Qe7 {[%clk 0:01:09.6]} 37. Rd4 {[%clk 0:01:22.9]} 37...
Qa7 {[%clk 0:01:07.2]} 38. Rd3 {[%clk 0:01:20.1]} 38... a5 {[%clk 0:01:05.5]}
39. bxa5 {[%clk 0:01:18.8]} 39... Qxa5 {[%clk 0:01:06.4]} 40. Kg2 {[%clk
0:01:16.1]} 40... Qe1 {[%clk 0:01:02.8]} 41. Bf3 {[%clk 0:01:12.7]} 41... Qb1
{[%clk 0:00:57.6]} 42. Qd4 {[%clk 0:01:04.1]} 42... Qa2 {[%clk 0:00:45.1]} 43.
Kg3 {[%clk 0:00:58]} 43... Re1 {[%clk 0:00:41.4]} 44. Rd1 {[%clk 0:00:52.4]}
44... Rxd1 {[%clk 0:00:37.8]} 45. Qxd1 {[%clk 0:00:44]} 45... Qd2 {[%clk
0:00:31.6]} 46. Qa1 {[%clk 0:00:41.9]} 46... Qa5 {[%clk 0:00:25.3]} 47. Qd4
{[%clk 0:00:42.2]} 47... Qb6 {[%clk 0:00:23.6]} 48. Qe4 {[%clk 0:00:38.7]} 48...
Ne5 {[%clk 0:00:24]} 49. Be2 {[%clk 0:00:39.1]} 49... Kf8 {[%clk 0:00:17.7]} 50.
f4 {[%clk 0:00:36.7]} 50... Qg1+ {[%clk 0:00:17.7]} 51. Qg2 {[%clk 0:00:34.1]}
51... Qe3+ {[%clk 0:00:12.8]} 52. Bf3 {[%clk 0:00:34.2]} 52... Qe1+ {[%clk
0:00:09.1]} 53. Kh2 {[%clk 0:00:33.1]} 53... Nd3 {[%clk 0:00:07.6]} 54. Qa2
{[%clk 0:00:26.5]} 54... Qf2+ {[%clk 0:00:07.3]} 55. Qxf2 {[%clk 0:00:26.2]}
55... Nxf2 {[%clk 0:00:08.2]} 56. Be2 {[%clk 0:00:24.3]} 56... b4 {[%clk
0:00:07.7]} 57. Kg2 {[%clk 0:00:24.6]} 57... Ne4 {[%clk 0:00:07.2]} 58. Kf3
{[%clk 0:00:24.8]} 58... Nc5 {[%clk 0:00:07.5]} 59. Ke3 {[%clk 0:00:24.6]} 59...
Ke7 {[%clk 0:00:07.6]} 60. Kd4 {[%clk 0:00:24.5]} 60... Kd7 {[%clk 0:00:06.8]}
61. Bf3 {[%clk 0:00:19.8]} 61... Kc7 {[%clk 0:00:06.3]} 62. Kc4 {[%clk
0:00:20.3]} 62... b3 {[%clk 0:00:06.5]} 63. Bd1 {[%clk 0:00:19.4]} 63... b2
{[%clk 0:00:06.2]} 64. Bc2 {[%clk 0:00:19.8]} 64... Kb6 {[%clk 0:00:05.7]} 65.
Kc3 {[%clk 0:00:20.3]} 65... Na6 {[%clk 0:00:04.1]} 66. Kxb2 {[%clk 0:00:19.9]}
66... Kc5 {[%clk 0:00:04.7]} 67. Kc3 {[%clk 0:00:20]} 67... Nb4 {[%clk
0:00:04.9]} 68. Bb3 {[%clk 0:00:18.2]} 68... Nxd5+ {[%clk 0:00:05.5]} 69. Kd2
{[%clk 0:00:18.5]} 69... Nxf4 {[%clk 0:00:05.4]} 70. h4 {[%clk 0:00:19.2]} 70...
Kd4 {[%clk 0:00:05.3]} 71. Bg8 {[%clk 0:00:17.9]} 71... h6 {[%clk 0:00:05.8]}
72. Bh7 {[%clk 0:00:18.8]} 72... d5 {[%clk 0:00:06]} 73. Ke1 {[%clk 0:00:19]}
73... Ke3 {[%clk 0:00:06.3]} 74. Kf1 {[%clk 0:00:19.9]} 74... d4 {[%clk
0:00:06.7]} 75. Kg1 {[%clk 0:00:20.8]} 75... d3 {[%clk 0:00:07.5]} 76. Kh2
{[%clk 0:00:21.7]} 76... d2 {[%clk 0:00:08.2]} 77. Kg3 {[%clk 0:00:22.6]} 77...
d1=Q {[%clk 0:00:08.5]} 0-1

[Event "Late-Titled-Tuesday-Blitz-April-30-2024"]
[Site "Chess.com"]
[Date "2024.04.30"]
[Round "3"]
[White "Levanzovsky"]
[Black "1800_strength"]
[Result "0-1"]
[WhiteElo "2505"]
[BlackElo "2809"]
[TimeControl "180+1"]
[EndTime "14:30:34 PDT"]
[Termination "1800_strength won on time"]

1. e4 {[%clk 0:02:49.4]} 1... e5 {[%clk 0:02:59.3]} 2. Nf3 {[%clk 0:02:48]} 2...
Nf6 {[%clk 0:03:00]} 3. Nxe5 {[%clk 0:02:46.4]} 3... d6 {[%clk 0:03:00.5]} 4.
Nf3 {[%clk 0:02:46.1]} 4... Nxe4 {[%clk 0:03:00.9]} 5. d3 {[%clk 0:02:46.3]}
5... Nf6 {[%clk 0:03:00.7]} 6. d4 {[%clk 0:02:46.8]} 6... d5 {[%clk 0:03:01.2]}
7. c4 {[%clk 0:02:45.2]} 7... Bb4+ {[%clk 0:02:59.4]} 8. Nc3 {[%clk 0:02:44.7]}
8... O-O {[%clk 0:02:59.8]} 9. Be2 {[%clk 0:02:43.5]} 9... dxc4 {[%clk
0:02:59.3]} 10. Bxc4 {[%clk 0:02:44.4]} 10... Re8+ {[%clk 0:02:48.4]} 11. Be3
{[%clk 0:02:42.5]} 11... Be6 {[%clk 0:02:48.9]} 12. Bxe6 {[%clk 0:02:40]} 12...
Rxe6 {[%clk 0:02:49.8]} 13. Qb3 {[%clk 0:02:39.3]} 13... Nc6 {[%clk 0:02:18.6]}
14. O-O {[%clk 0:02:36]} 14... Bxc3 {[%clk 0:01:36]} 15. bxc3 {[%clk 0:02:35.7]}
15... Na5 {[%clk 0:01:36.7]} 16. Qb4 {[%clk 0:02:31.1]} 16... c6 {[%clk
0:01:36.5]} 17. c4 {[%clk 0:02:27.4]} 17... b5 {[%clk 0:01:29.1]} 18. Ne5 {[%clk
0:02:13.2]} 18... bxc4 {[%clk 0:01:22.9]} 19. Nxc4 {[%clk 0:02:14.1]} 19... Nxc4
{[%clk 0:01:23.1]} 20. Qxc4 {[%clk 0:02:14.7]} 20... Nd5 {[%clk 0:01:23.7]} 21.
Rfe1 {[%clk 0:02:07.1]} 21... Qa5 {[%clk 0:01:10.4]} 22. Rec1 {[%clk 0:01:41.6]}
22... h6 {[%clk 0:00:55.1]} 23. Qd3 {[%clk 0:01:30.6]} 23... Nxe3 {[%clk
0:00:46.2]} 24. fxe3 {[%clk 0:01:29.8]} 24... Rae8 {[%clk 0:00:46.6]} 25. Rc3
{[%clk 0:00:54.3]} 25... Qg5 {[%clk 0:00:35.4]} 26. Re1 {[%clk 0:00:52.1]} 26...
h5 {[%clk 0:00:32]} 27. Rc5 {[%clk 0:00:23.9]} 27... Qh4 {[%clk 0:00:28.2]} 28.
g3 {[%clk 0:00:18.8]} 28... Qg4 {[%clk 0:00:28.5]} 29. Qf5 {[%clk 0:00:16.5]}
29... Qxf5 {[%clk 0:00:19.9]} 30. Rxf5 {[%clk 0:00:16.3]} 30... Rxe3 {[%clk
0:00:20]} 31. Rxe3 {[%clk 0:00:16.2]} 31... Rxe3 {[%clk 0:00:20.6]} 32. Rxh5
{[%clk 0:00:16]} 32... Re1+ {[%clk 0:00:19.5]} 33. Kf2 {[%clk 0:00:15.2]} 33...
Ra1 {[%clk 0:00:20.4]} 34. Ra5 {[%clk 0:00:15.5]} 34... Rd1 {[%clk 0:00:20.6]}
35. Ke3 {[%clk 0:00:14.6]} 35... Rh1 {[%clk 0:00:18.8]} 36. h4 {[%clk 0:00:14]}
36... Rg1 {[%clk 0:00:19.5]} 37. Kf2 {[%clk 0:00:13.7]} 37... Rd1 {[%clk
0:00:19.6]} 38. Ke3 {[%clk 0:00:13]} 38... Re1+ {[%clk 0:00:20.1]} 39. Kd3
{[%clk 0:00:08.9]} 39... Re7 {[%clk 0:00:21]} 40. Kc4 {[%clk 0:00:09]} 40... Kh7
{[%clk 0:00:17]} 41. Ra6 {[%clk 0:00:09.3]} 41... Re3 {[%clk 0:00:16.3]} 42.
Rxa7 {[%clk 0:00:08.3]} 42... f5 {[%clk 0:00:16.9]} 43. Kc5 {[%clk 0:00:07.4]}
43... Rc3+ {[%clk 0:00:16.5]} 44. Kd6 {[%clk 0:00:07.5]} 44... Rxg3 {[%clk
0:00:15.9]} 45. Ke5 {[%clk 0:00:08]} 45... Rg4 {[%clk 0:00:13.9]} 46. Rd7 {[%clk
0:00:06.2]} 46... Rxh4 {[%clk 0:00:10]} 47. a4 {[%clk 0:00:05.1]} 47... Kg6
{[%clk 0:00:07.9]} 48. a5 {[%clk 0:00:05.2]} 48... Re4+ {[%clk 0:00:08]} 49. Kd6
{[%clk 0:00:05.2]} 49... Rxd4+ {[%clk 0:00:08.6]} 50. Kxc6 {[%clk 0:00:05.3]}
50... Rxd7 {[%clk 0:00:07.9]} 51. Kxd7 {[%clk 0:00:05.6]} 51... f4 {[%clk
0:00:08.5]} 52. a6 {[%clk 0:00:06]} 52... f3 {[%clk 0:00:09.4]} 53. a7 {[%clk
0:00:06.1]} 53... f2 {[%clk 0:00:10.3]} 54. a8=Q {[%clk 0:00:06.6]} 54... f1=Q
{[%clk 0:00:11.2]} 55. Qa4 {[%clk 0:00:02.2]} 55... Qd3+ {[%clk 0:00:10.9]} 56.
Kc7 {[%clk 0:00:01.7]} 56... Qg3+ {[%clk 0:00:10.8]} 57. Kd8 {[%clk 0:00:02.1]}
57... Qg5+ {[%clk 0:00:10.6]} 58. Ke8 {[%clk 0:00:02.6]} 58... Qe5+ {[%clk
0:00:11.1]} 59. Kf8 {[%clk 0:00:02.8]} 59... Qf6+ {[%clk 0:00:10.1]} 60. Ke8
{[%clk 0:00:02.3]} 60... Qf7+ {[%clk 0:00:10.5]} 61. Kd8 {[%clk 0:00:02.6]}
61... Kh7 {[%clk 0:00:10.9]} 62. Qh4+ {[%clk 0:00:01.9]} 62... Kg8 {[%clk
0:00:11.3]} 63. Qg3 {[%clk 0:00:01.5]} 63... g6 {[%clk 0:00:11.5]} 64. Kc8
{[%clk 0:00:01.7]} 64... Kg7 {[%clk 0:00:12.1]} 65. Qg4 {[%clk 0:00:02]} 65...
Qf5+ {[%clk 0:00:12.4]} 0-1

[Event "Late-Titled-Tuesday-Blitz-April-30-2024"]
[Site "Chess.com"]
[Date "2024.04.30"]
[Round "3"]
[White "xasid81"]
[Black "zverr1"]
[Result "0-1"]
[WhiteElo "2641"]
[BlackElo "2478"]
[TimeControl "180+1"]
[EndTime "14:30:38 PDT"]
[Termination "zverr1 won by resignation"]

1. e4 {[%clk 0:03:00.1]} 1... c5 {[%clk 0:03:00.3]} 2. Nf3 {[%clk 0:02:59.3]}
2... Nc6 {[%clk 0:03:00.9]} 3. Bb5 {[%clk 0:02:57.9]} 3... Nf6 {[%clk
0:03:01.1]} 4. Nc3 {[%clk 0:02:57.3]} 4... Nd4 {[%clk 0:03:00.7]} 5. e5 {[%clk
0:02:56.3]} 5... Nxb5 {[%clk 0:03:00.9]} 6. Nxb5 {[%clk 0:02:54.2]} 6... Nd5
{[%clk 0:03:01.1]} 7. O-O {[%clk 0:02:48.2]} 7... a6 {[%clk 0:03:00.8]} 8. Nc3
{[%clk 0:02:33.6]} 8... Nxc3 {[%clk 0:02:54.3]} 9. dxc3 {[%clk 0:02:30.1]} 9...
d5 {[%clk 0:02:55.2]} 10. exd6 {[%clk 0:02:28.4]} 10... Qxd6 {[%clk 0:02:51.7]}
11. Qxd6 {[%clk 0:02:26.8]} 11... exd6 {[%clk 0:02:51.5]} 12. Re1+ {[%clk
0:02:27.7]} 12... Be6 {[%clk 0:02:51.4]} 13. Ng5 {[%clk 0:02:25.5]} 13... Kd7
{[%clk 0:02:51.3]} 14. Bf4 {[%clk 0:02:24.9]} 14... Be7 {[%clk 0:02:43.9]} 15.
Nxe6 {[%clk 0:02:18.4]} 15... fxe6 {[%clk 0:02:44.8]} 16. Rad1 {[%clk
0:02:18.8]} 16... Rad8 {[%clk 0:02:28.6]} 17. c4 {[%clk 0:02:16.5]} 17... Rhe8
{[%clk 0:02:24.2]} 18. Rd3 {[%clk 0:02:10.4]} 18... h6 {[%clk 0:02:07.5]} 19. h3
{[%clk 0:02:07.8]} 19... Bf8 {[%clk 0:02:06.7]} 20. Rb3 {[%clk 0:02:06.5]} 20...
Kc6 {[%clk 0:02:04.7]} 21. a4 {[%clk 0:02:01.5]} 21... b6 {[%clk 0:01:55.7]} 22.
Rbe3 {[%clk 0:01:59.5]} 22... e5 {[%clk 0:01:42.3]} 23. Bh2 {[%clk 0:01:59.8]}
23... Kd7 {[%clk 0:01:17.9]} 24. Rb3 {[%clk 0:01:57.5]} 24... Rb8 {[%clk
0:01:03.5]} 25. Kf1 {[%clk 0:01:56.9]} 25... Kc6 {[%clk 0:00:52.7]} 26. g4
{[%clk 0:01:55]} 26... Be7 {[%clk 0:00:50]} 27. Kg2 {[%clk 0:01:50.3]} 27... Bg5
{[%clk 0:00:47.5]} 28. Rd1 {[%clk 0:01:42.6]} 28... Rf8 {[%clk 0:00:43.4]} 29.
Rbd3 {[%clk 0:01:37.6]} 29... Rbd8 {[%clk 0:00:42.3]} 30. Bg3 {[%clk 0:01:35.8]}
30... Bf4 {[%clk 0:00:38.7]} 31. Rf3 {[%clk 0:01:22.9]} 31... Bxg3 {[%clk
0:00:37.8]} 32. Kxg3 {[%clk 0:01:23.8]} 32... Rxf3+ {[%clk 0:00:37.4]} 33. Kxf3
{[%clk 0:01:24.7]} 33... Rf8+ {[%clk 0:00:37.7]} 34. Ke3 {[%clk 0:01:25]} 34...
Rf4 {[%clk 0:00:38]} 35. b3 {[%clk 0:01:25.4]} 35... h5 {[%clk 0:00:30.6]} 36.
f3 {[%clk 0:01:18.7]} 36... g5 {[%clk 0:00:26.8]} 37. Rg1 {[%clk 0:01:14.6]}
37... h4 {[%clk 0:00:26.7]} 38. Ra1 {[%clk 0:01:09.8]} 38... Rd4 {[%clk
0:00:22.4]} 39. a5 {[%clk 0:01:05]} 39... b5 {[%clk 0:00:20.3]} 40. cxb5+ {[%clk
0:01:03]} 40... Kxb5 {[%clk 0:00:21.2]} 41. c3 {[%clk 0:00:59.3]} 41... Rf4
{[%clk 0:00:19.5]} 42. Rd1 {[%clk 0:00:57.5]} 42... Rf6 {[%clk 0:00:19.9]} 43.
Ra1 {[%clk 0:00:57.2]} 43... d5 {[%clk 0:00:20.4]} 44. Rf1 {[%clk 0:00:26.1]}
44... Kxa5 {[%clk 0:00:15.3]} 45. Ra1+ {[%clk 0:00:26.3]} 45... Kb5 {[%clk
0:00:15.7]} 46. Rf1 {[%clk 0:00:26.9]} 46... Rf4 {[%clk 0:00:15.6]} 47. Rd1
{[%clk 0:00:24.9]} 47... d4+ {[%clk 0:00:15.3]} 48. cxd4 {[%clk 0:00:25.5]}
48... Rxd4 {[%clk 0:00:15.5]} 49. Rc1 {[%clk 0:00:22.7]} 49... Rb4 {[%clk
0:00:15.1]} 50. Rc3 {[%clk 0:00:21.1]} 50... a5 {[%clk 0:00:15.3]} 51. Rd3
{[%clk 0:00:20.4]} 51... Kc6 {[%clk 0:00:15.5]} 52. Kf2 {[%clk 0:00:20.2]} 52...
Rd4 {[%clk 0:00:15.1]} 53. Re3 {[%clk 0:00:20.2]} 53... Kd5 {[%clk 0:00:15.7]}
54. Rc3 {[%clk 0:00:18.7]} 54... c4 {[%clk 0:00:15.8]} 55. bxc4+ {[%clk
0:00:18.9]} 55... Rxc4 {[%clk 0:00:16.7]} 56. Ra3 {[%clk 0:00:19.4]} 56... a4
{[%clk 0:00:16.5]} 57. Rd3+ {[%clk 0:00:19.5]} 57... Kc5 {[%clk 0:00:16.6]} 58.
Re3 {[%clk 0:00:19.4]} 58... Kd4 {[%clk 0:00:15.5]} 59. Re4+ {[%clk 0:00:19.1]}
59... Kd5 {[%clk 0:00:16.2]} 60. Re3 {[%clk 0:00:19.7]} 60... Rb4 {[%clk
0:00:16.5]} 61. Rd3+ {[%clk 0:00:19.5]} 61... Kc4 {[%clk 0:00:16.6]} 62. Re3
{[%clk 0:00:19.8]} 62... Rb5 {[%clk 0:00:16.7]} 63. Re4+ {[%clk 0:00:19.8]}
63... Kb3 {[%clk 0:00:16.5]} 64. Re3+ {[%clk 0:00:20.4]} 64... Ka2 {[%clk
0:00:17.2]} 65. Re4 {[%clk 0:00:20.3]} 65... a3 {[%clk 0:00:17.2]} 66. f4 {[%clk
0:00:19.1]} 66... exf4 {[%clk 0:00:16.4]} 67. Kf3 {[%clk 0:00:19.6]} 67... Kb1
{[%clk 0:00:15.2]} 68. Re1+ {[%clk 0:00:19]} 68... Kc2 {[%clk 0:00:15.7]} 69.
Re2+ {[%clk 0:00:19.9]} 69... Kd3 {[%clk 0:00:15.7]} 70. Re5 {[%clk 0:00:20.5]}
70... Ra5 {[%clk 0:00:13.3]} 71. Rb5 {[%clk 0:00:21.4]} 71... Rxb5 {[%clk
0:00:12.2]} 0-1

[Event "Late-Titled-Tuesday-Blitz-April-30-2024"]
[Site "Chess.com"]
[Date "2024.04.30"]
[Round "3"]
[White "Mikayel99"]
[Black "ab-lsv"]
[Result "0-1"]
[WhiteElo "2561"]
[BlackElo "2365"]
[TimeControl "180+1"]
[EndTime "14:30:39 PDT"]
[Termination "ab-lsv won by checkmate"]

1. Nf3 {[%clk 0:03:00.9]} 1... c5 {[%clk 0:02:59.3]} 2. g3 {[%clk 0:03:01]} 2...
g6 {[%clk 0:02:59.6]} 3. Bg2 {[%clk 0:03:01.3]} 3... Bg7 {[%clk 0:03:00]} 4. O-O
{[%clk 0:03:02]} 4... Nc6 {[%clk 0:02:59.9]} 5. c3 {[%clk 0:03:02.7]} 5... e5
{[%clk 0:02:59.1]} 6. e4 {[%clk 0:03:02.5]} 6... d6 {[%clk 0:02:56.1]} 7. Na3
{[%clk 0:03:02.6]} 7... Nge7 {[%clk 0:02:55]} 8. Nc2 {[%clk 0:03:02.7]} 8... O-O
{[%clk 0:02:49.7]} 9. d4 {[%clk 0:03:02.6]} 9... exd4 {[%clk 0:02:42.9]} 10.
cxd4 {[%clk 0:03:01.8]} 10... Bg4 {[%clk 0:02:41.8]} 11. Be3 {[%clk 0:02:59.5]}
11... Qb6 {[%clk 0:02:29.3]} 12. dxc5 {[%clk 0:02:32.5]} 12... dxc5 {[%clk
0:02:30.2]} 13. h3 {[%clk 0:02:32.9]} 13... Bxf3 {[%clk 0:02:26.5]} 14. Qxf3
{[%clk 0:02:31.7]} 14... Qxb2 {[%clk 0:02:18]} 15. Rfc1 {[%clk 0:02:09.9]} 15...
b6 {[%clk 0:02:09.3]} 16. Rab1 {[%clk 0:02:02.3]} 16... Qxa2 {[%clk 0:02:06.8]}
17. Bf1 {[%clk 0:02:01.1]} 17... Qe6 {[%clk 0:02:02.3]} 18. Na3 {[%clk
0:01:55.2]} 18... Rad8 {[%clk 0:01:56.4]} 19. Bc4 {[%clk 0:01:52.3]} 19... Qxh3
{[%clk 0:01:55.9]} 20. Nb5 {[%clk 0:01:44.4]} 20... Ne5 {[%clk 0:01:51.9]} 21.
Qg2 {[%clk 0:01:43.4]} 21... Qxg2+ {[%clk 0:01:48.6]} 22. Kxg2 {[%clk 0:01:44]}
22... Nxc4 {[%clk 0:01:48.4]} 23. Rxc4 {[%clk 0:01:44.9]} 23... Nc6 {[%clk
0:01:48.7]} 24. Ra4 {[%clk 0:01:42.8]} 24... Rd7 {[%clk 0:01:46]} 25. f4 {[%clk
0:01:39.8]} 25... Rfd8 {[%clk 0:01:22.5]} 26. e5 {[%clk 0:01:39]} 26... Bf8
{[%clk 0:01:21.4]} 27. Kf2 {[%clk 0:01:28]} 27... h5 {[%clk 0:01:20.8]} 28. Rh1
{[%clk 0:01:20.7]} 28... Ra8 {[%clk 0:01:09.5]} 29. f5 {[%clk 0:01:19.2]} 29...
Nxe5 {[%clk 0:01:05.3]} 30. fxg6 {[%clk 0:01:16.2]} 30... fxg6 {[%clk
0:01:04.6]} 31. Bf4 {[%clk 0:01:14]} 31... Nd3+ {[%clk 0:01:03.3]} 32. Kf3
{[%clk 0:01:14]} 32... Nxf4 {[%clk 0:01:03.5]} 33. gxf4 {[%clk 0:01:14.2]} 33...
a6 {[%clk 0:01:00.5]} 34. f5 {[%clk 0:01:10.9]} 34... Kg7 {[%clk 0:00:51.4]} 35.
fxg6 {[%clk 0:01:10.5]} 35... Kxg6 {[%clk 0:00:51.7]} 36. Rg1+ {[%clk
0:01:08.9]} 36... Kh6 {[%clk 0:00:50.2]} 37. Na3 {[%clk 0:01:08.7]} 37... Bg7
{[%clk 0:00:40.7]} 38. Nc2 {[%clk 0:00:53.7]} 38... b5 {[%clk 0:00:37.8]} 39.
Re4 {[%clk 0:00:51.7]} 39... Rf8+ {[%clk 0:00:35.8]} 40. Ke2 {[%clk 0:00:51]}
40... Rdf7 {[%clk 0:00:28]} 41. Rg2 {[%clk 0:00:45]} 41... b4 {[%clk 0:00:25.1]}
42. Ne3 {[%clk 0:00:43.9]} 42... Bd4 {[%clk 0:00:21]} 43. Re6+ {[%clk
0:00:38.6]} 43... Rf6 {[%clk 0:00:21.1]} 44. Re7 {[%clk 0:00:36.5]} 44... Bxe3
{[%clk 0:00:19.9]} 45. Kxe3 {[%clk 0:00:36.3]} 45... Rf3+ {[%clk 0:00:18.6]} 46.
Ke4 {[%clk 0:00:34.7]} 46... R8f4+ {[%clk 0:00:17.9]} 47. Kd5 {[%clk 0:00:35.3]}
47... Rf5+ {[%clk 0:00:17.4]} 48. Kc6 {[%clk 0:00:31.7]} 48... b3 {[%clk
0:00:16.1]} 49. Re8 {[%clk 0:00:26.5]} 49... Rf8 {[%clk 0:00:14.3]} 50. Re7
{[%clk 0:00:22.9]} 50... c4 {[%clk 0:00:12.5]} 51. Kc5 {[%clk 0:00:21.2]} 51...
c3 {[%clk 0:00:11.8]} 52. Re6+ {[%clk 0:00:16.3]} 52... R8f6 {[%clk 0:00:11.6]}
53. Re8 {[%clk 0:00:16.6]} 53... Rf8 {[%clk 0:00:11]} 54. Re6+ {[%clk 0:00:17]}
54... R3f6 {[%clk 0:00:11.4]} 55. Re3 {[%clk 0:00:13.1]} 55... c2 {[%clk
0:00:11.1]} 56. Rc3 {[%clk 0:00:06.4]} 56... Rc8+ {[%clk 0:00:11.1]} 57. Kb4
{[%clk 0:00:05.8]} 57... Rb6+ {[%clk 0:00:11.3]} 58. Ka4 {[%clk 0:00:03.6]}
58... Rxc3 {[%clk 0:00:11.6]} 59. Rg8 {[%clk 0:00:03.4]} 59... c1=Q {[%clk
0:00:11.2]} 60. Rh8+ {[%clk 0:00:03.8]} 60... Kg7 {[%clk 0:00:11.1]} 61. Rg8+
{[%clk 0:00:03.1]} 61... Kxg8 {[%clk 0:00:10.7]} 62. Ka5 {[%clk 0:00:03.5]}
62... Rb8 {[%clk 0:00:11]} 63. Kxa6 {[%clk 0:00:03]} 63... b2 {[%clk 0:00:11.3]}
64. Ka7 {[%clk 0:00:02.9]} 64... Rcb3 {[%clk 0:00:11.7]} 65. Ka6 {[%clk
0:00:03.2]} 65... Qa1# {[%clk 0:00:11.9]} 0-1